[Event "Early-Titled-Tuesday-Blitz-November-28-2023"]
[Site "Chess.com"]
[Date "2023.11.28"]
[Round "1"]
[White "maximnovik"]
[Black "xamax2000"]
[Result "0-1"]
[WhiteElo "2500"]
[BlackElo "2918"]
[TimeControl "180+1"]
[EndTime "8:08:06 PST"]
[Termination "xamax2000 won on time"]

1. e4 {[%clk 0:02:59.1]} 1... c6 {[%clk 0:02:58.8]} 2. d4 {[%clk 0:02:58.5]}
2... d5 {[%clk 0:02:59.6]} 3. exd5 {[%clk 0:02:58.8]} 3... cxd5 {[%clk
0:03:00.5]} 4. c4 {[%clk 0:02:59.3]} 4... Nf6 {[%clk 0:03:00]} 5. Nc3 {[%clk
0:02:59.9]} 5... Nc6 {[%clk 0:03:00.6]} 6. Bg5 {[%clk 0:02:59]} 6... Be6 {[%clk
0:03:00.3]} 7. g3 {[%clk 0:02:55.1]} 7... Qb6 {[%clk 0:02:47.2]} 8. Bxf6 {[%clk
0:02:46.5]} 8... exf6 {[%clk 0:02:46.5]} 9. cxd5 {[%clk 0:02:44.5]} 9... Qxb2
{[%clk 0:02:46.8]} 10. Rc1 {[%clk 0:02:40.3]} 10... Bb4 {[%clk 0:02:44.2]} 11.
Bg2 {[%clk 0:02:13.2]} 11... Bxc3+ {[%clk 0:02:36.4]} 12. Kf1 {[%clk 0:02:13.3]}
12... Bxd4 {[%clk 0:02:27.8]} 13. Ne2 {[%clk 0:02:12.3]} 13... Rd8 {[%clk
0:02:16.3]} 14. dxe6 {[%clk 0:02:01.2]} 14... fxe6 {[%clk 0:02:11.8]} 15. Rb1
{[%clk 0:01:59.4]} 15... Qxa2 {[%clk 0:02:06.9]} 16. Rxb7 {[%clk 0:01:58.7]}
16... Qa6 {[%clk 0:02:02.3]} 17. Rxg7 {[%clk 0:01:43.9]} 17... f5 {[%clk
0:02:02.6]} 18. Rc7 {[%clk 0:01:21.4]} 18... Ne5 {[%clk 0:01:51]} 19. Bb7 {[%clk
0:00:58.5]} 19... Qb6 {[%clk 0:01:42.2]} 20. Qc2 {[%clk 0:00:54.7]} 20... Bxf2
{[%clk 0:01:29.6]} 21. Kg2 {[%clk 0:00:54.7]} 21... Be3 {[%clk 0:00:42.3]} 22.
Qc3 {[%clk 0:00:44]} 22... Bd4 {[%clk 0:00:33.5]} 23. Nxd4 {[%clk 0:00:39.9]}
23... Qxd4 {[%clk 0:00:34.4]} 24. Qxd4 {[%clk 0:00:38.6]} 24... Rxd4 {[%clk
0:00:35.3]} 25. Re1 {[%clk 0:00:38.5]} 25... Rd2+ {[%clk 0:00:30.4]} 26. Kf1
{[%clk 0:00:34.6]} 26... Ng4 {[%clk 0:00:12.8]} 27. Rc8+ {[%clk 0:00:34.5]}
27... Rd8 {[%clk 0:00:11.3]} 28. Rxe6+ {[%clk 0:00:32.2]} 28... Kd7 {[%clk
0:00:11.8]} 29. Rcc6 {[%clk 0:00:23.2]} 29... Rhe8 {[%clk 0:00:07.4]} 30. Rxe8
{[%clk 0:00:18.4]} 30... Rxe8 {[%clk 0:00:06.8]} 31. Ra6 {[%clk 0:00:19.3]}
31... Kc7 {[%clk 0:00:05.9]} 32. Bd5 {[%clk 0:00:17.4]} 32... Re5 {[%clk
0:00:05.2]} 33. Rxa7+ {[%clk 0:00:16.3]} 33... Kb6 {[%clk 0:00:05.1]} 34. Rb7+
{[%clk 0:00:16.4]} 34... Ka6 {[%clk 0:00:05.6]} 35. Rd7 {[%clk 0:00:16.7]} 35...
Rxd5 {[%clk 0:00:05.2]} 36. Rxd5 {[%clk 0:00:16.3]} 36... Ne3+ {[%clk
0:00:05.1]} 37. Ke2 {[%clk 0:00:16.6]} 37... Nxd5 {[%clk 0:00:06]} 38. Kd3
{[%clk 0:00:17.2]} 38... f4 {[%clk 0:00:03.8]} 39. Kd4 {[%clk 0:00:18.1]} 39...
f3 {[%clk 0:00:03.8]} 40. Kd3 {[%clk 0:00:18]} 40... Kb5 {[%clk 0:00:04.1]} 41.
g4 {[%clk 0:00:17.8]} 41... Kc5 {[%clk 0:00:04.8]} 42. h4 {[%clk 0:00:18]} 42...
Kd6 {[%clk 0:00:05.4]} 43. g5 {[%clk 0:00:15.4]} 43... Ke5 {[%clk 0:00:05.9]}
44. h5 {[%clk 0:00:16]} 44... Kf5 {[%clk 0:00:06.6]} 45. g6 {[%clk 0:00:16.4]}
45... hxg6 {[%clk 0:00:07.5]} 46. hxg6 {[%clk 0:00:17]} 46... Kxg6 {[%clk
0:00:07.8]} 47. Kd2 {[%clk 0:00:17.2]} 47... Kf5 {[%clk 0:00:08.2]} 48. Ke1
{[%clk 0:00:18.1]} 48... Kf4 {[%clk 0:00:08.9]} 49. Kf2 {[%clk 0:00:19]} 49...
Ne3 {[%clk 0:00:09.7]} 50. Kg1 {[%clk 0:00:18.2]} 50... Ng4 {[%clk 0:00:10.6]}
51. Kf1 {[%clk 0:00:18.4]} 51... Kg3 {[%clk 0:00:11.3]} 52. Kg1 {[%clk
0:00:18.8]} 52... f2+ {[%clk 0:00:11.9]} 53. Kf1 {[%clk 0:00:19.3]} 53... Nh2+
{[%clk 0:00:12.2]} 54. Ke2 {[%clk 0:00:20.2]} 54... f1=Q+ {[%clk 0:00:13.1]} 0-1

[Event "Early-Titled-Tuesday-Blitz-November-28-2023"]
[Site "Chess.com"]
[Date "2023.11.28"]
[Round "1"]
[White "Pastore1978"]
[Black "LoveUMore"]
[Result "1-0"]
[WhiteElo "2332"]
[BlackElo "2547"]
[TimeControl "180+1"]
[EndTime "8:08:07 PST"]
[Termination "Pastore1978 won by checkmate"]

1. e4 {[%clk 0:03:00.2]} 1... Nc6 {[%clk 0:02:59.7]} 2. Nf3 {[%clk 0:02:59.3]}
2... d6 {[%clk 0:02:59.7]} 3. Nc3 {[%clk 0:02:58]} 3... Nf6 {[%clk 0:02:59.9]}
4. d4 {[%clk 0:02:54.3]} 4... Bg4 {[%clk 0:03:00.1]} 5. Be3 {[%clk 0:02:52.3]}
5... e5 {[%clk 0:02:59.9]} 6. d5 {[%clk 0:02:23.2]} 6... Ne7 {[%clk 0:02:59.6]}
7. h3 {[%clk 0:02:21.6]} 7... Bd7 {[%clk 0:02:59.2]} 8. Qd2 {[%clk 0:02:20.9]}
8... Ng6 {[%clk 0:02:59.3]} 9. O-O-O {[%clk 0:02:15.9]} 9... Be7 {[%clk
0:02:59.2]} 10. h4 {[%clk 0:02:13.5]} 10... h5 {[%clk 0:02:57.1]} 11. Bg5 {[%clk
0:02:01.9]} 11... O-O {[%clk 0:02:55.1]} 12. Be2 {[%clk 0:01:59.1]} 12... Ng4
{[%clk 0:02:54.3]} 13. Rdf1 {[%clk 0:01:52.1]} 13... f6 {[%clk 0:02:52.9]} 14.
Be3 {[%clk 0:01:45.6]} 14... Nxe3 {[%clk 0:02:51.6]} 15. fxe3 {[%clk 0:01:29.8]}
15... f5 {[%clk 0:02:44.8]} 16. Ng5 {[%clk 0:01:19.7]} 16... Bxg5 {[%clk
0:02:40]} 17. hxg5 {[%clk 0:01:20.6]} 17... Qxg5 {[%clk 0:02:32.4]} 18. Rxh5
{[%clk 0:01:03.8]} 18... Qxg2 {[%clk 0:02:32]} 19. exf5 {[%clk 0:01:01.5]} 19...
Ne7 {[%clk 0:02:29]} 20. e4 {[%clk 0:00:53.8]} 20... Kf7 {[%clk 0:02:23.2]} 21.
Rg5 {[%clk 0:00:48.8]} 21... Qh3 {[%clk 0:02:18.8]} 22. Bh5+ {[%clk 0:00:48.6]}
22... g6 {[%clk 0:02:00.1]} 23. Bxg6+ {[%clk 0:00:46.3]} 23... Nxg6 {[%clk
0:01:56.9]} 24. fxg6+ {[%clk 0:00:46]} 24... Kg7 {[%clk 0:01:56.5]} 25. Rf7+
{[%clk 0:00:34]} 25... Kg8 {[%clk 0:01:44.3]} 26. Qf2 {[%clk 0:00:25.4]} 26...
Qh6 {[%clk 0:01:35]} 27. Qf6 {[%clk 0:00:12.6]} 27... Be8 {[%clk 0:01:14]} 28.
b3 {[%clk 0:00:10.4]} 28... Qxg5+ {[%clk 0:01:02.4]} 29. Qxg5 {[%clk 0:00:10]}
29... Bxf7 {[%clk 0:01:03]} 30. gxf7+ {[%clk 0:00:10.7]} 30... Kxf7 {[%clk
0:01:03.1]} 31. Ne2 {[%clk 0:00:08.8]} 31... Rae8 {[%clk 0:00:57.2]} 32. Qf5+
{[%clk 0:00:08.7]} 32... Ke7 {[%clk 0:00:57.1]} 33. Qg5+ {[%clk 0:00:07.8]}
33... Kd7 {[%clk 0:00:57.1]} 34. Ng3 {[%clk 0:00:07.5]} 34... Kc8 {[%clk
0:00:56.6]} 35. Nf5 {[%clk 0:00:07.5]} 35... Kb8 {[%clk 0:00:57.1]} 36. Kb2
{[%clk 0:00:06.9]} 36... a5 {[%clk 0:00:56.2]} 37. a4 {[%clk 0:00:07.4]} 37...
Rg8 {[%clk 0:00:55.6]} 38. Qf6 {[%clk 0:00:07.3]} 38... Ref8 {[%clk 0:00:55.2]}
39. Qe7 {[%clk 0:00:07.1]} 39... Re8 {[%clk 0:00:55.3]} 40. Qf7 {[%clk 0:00:07]}
40... Ref8 {[%clk 0:00:55.2]} 41. Qd7 {[%clk 0:00:07.2]} 41... Rd8 {[%clk
0:00:53.3]} 42. Qb5 {[%clk 0:00:07.2]} 42... Rg2 {[%clk 0:00:49.1]} 43. Ne7
{[%clk 0:00:06.1]} 43... Rh8 {[%clk 0:00:44.8]} 44. Nc6+ {[%clk 0:00:04.8]}
44... Kc8 {[%clk 0:00:44.9]} 45. Nxa5 {[%clk 0:00:05.4]} 45... b6 {[%clk
0:00:32.6]} 46. Qa6+ {[%clk 0:00:05]} 46... Kd7 {[%clk 0:00:29.6]} 47. Qb5+
{[%clk 0:00:04.9]} 47... Kc8 {[%clk 0:00:28.6]} 48. Nc6 {[%clk 0:00:05.6]} 48...
Rhh2 {[%clk 0:00:26.2]} 49. Qa6+ {[%clk 0:00:05.7]} 49... Kd7 {[%clk 0:00:25.7]}
50. Nb4 {[%clk 0:00:05.4]} 50... Rd2 {[%clk 0:00:20.1]} 51. Qb5+ {[%clk
0:00:05.8]} 51... Kc8 {[%clk 0:00:18.4]} 52. Qc6 {[%clk 0:00:06.7]} 52... Rd4
{[%clk 0:00:17]} 53. Na6 {[%clk 0:00:06.6]} 53... Kd8 {[%clk 0:00:16.3]} 54.
Qxc7+ {[%clk 0:00:07]} 54... Ke8 {[%clk 0:00:15.6]} 55. Qxb6 {[%clk 0:00:06.6]}
55... Rdd2 {[%clk 0:00:15.2]} 56. Qc6+ {[%clk 0:00:06.1]} 56... Ke7 {[%clk
0:00:15.2]} 57. Nb4 {[%clk 0:00:07]} 57... Rd4 {[%clk 0:00:14.9]} 58. Qc7+
{[%clk 0:00:06.9]} 58... Ke8 {[%clk 0:00:14.6]} 59. Nc6 {[%clk 0:00:07.2]} 59...
Rdd2 {[%clk 0:00:14.3]} 60. Qe7# {[%clk 0:00:07.4]} 1-0

[Event "Early-Titled-Tuesday-Blitz-November-28-2023"]
[Site "Chess.com"]
[Date "2023.11.28"]
[Round "1"]
[White "Fore_Man"]
[Black "HalfIsCrayfish"]
[Result "1-0"]
[WhiteElo "2361"]
[BlackElo "2631"]
[TimeControl "180+1"]
[EndTime "8:08:09 PST"]
[Termination "Fore_Man won by resignation"]

1. d4 {[%clk 0:02:59.3]} 1... d5 {[%clk 0:03:00.1]} 2. c4 {[%clk 0:02:59.1]}
2... e6 {[%clk 0:02:58.3]} 3. Nf3 {[%clk 0:02:58.8]} 3... c6 {[%clk 0:02:58.6]}
4. Nc3 {[%clk 0:02:59.1]} 4... dxc4 {[%clk 0:02:58.7]} 5. a4 {[%clk 0:02:58.1]}
5... Bb4 {[%clk 0:02:58.9]} 6. e3 {[%clk 0:02:57.8]} 6... b5 {[%clk 0:02:58.6]}
7. Be2 {[%clk 0:02:56.9]} 7... Bb7 {[%clk 0:02:51.4]} 8. O-O {[%clk 0:02:56.9]}
8... a6 {[%clk 0:02:47.8]} 9. Ne5 {[%clk 0:02:52]} 9... Nd7 {[%clk 0:02:36.7]}
10. f4 {[%clk 0:02:44]} 10... Ngf6 {[%clk 0:02:28.4]} 11. Bf3 {[%clk 0:02:43.6]}
11... Qc8 {[%clk 0:02:17.3]} 12. Bd2 {[%clk 0:02:35.2]} 12... Be7 {[%clk
0:02:07.9]} 13. Kh1 {[%clk 0:02:18.9]} 13... O-O {[%clk 0:02:07]} 14. Qc2 {[%clk
0:02:18.5]} 14... Nb6 {[%clk 0:01:32.8]} 15. axb5 {[%clk 0:02:10.6]} 15... cxb5
{[%clk 0:01:26.2]} 16. e4 {[%clk 0:02:05.8]} 16... Rd8 {[%clk 0:01:24.3]} 17.
Be3 {[%clk 0:02:05.6]} 17... Qc7 {[%clk 0:01:19.8]} 18. Rfd1 {[%clk 0:01:47.3]}
18... Rac8 {[%clk 0:01:16.5]} 19. Qf2 {[%clk 0:01:46.8]} 19... b4 {[%clk
0:01:15.1]} 20. d5 {[%clk 0:01:42.4]} 20... Na8 {[%clk 0:01:01.8]} 21. dxe6
{[%clk 0:01:38.3]} 21... bxc3 {[%clk 0:00:58.2]} 22. exf7+ {[%clk 0:01:35.4]}
22... Kf8 {[%clk 0:00:56.1]} 23. bxc3 {[%clk 0:01:33.5]} 23... Rxd1+ {[%clk
0:00:55.4]} 24. Rxd1 {[%clk 0:01:33.1]} 24... Rd8 {[%clk 0:00:53.7]} 25. Rb1
{[%clk 0:01:32.8]} 25... Nxe4 {[%clk 0:00:51.9]} 26. Qc2 {[%clk 0:01:25.2]}
26... Rd3 {[%clk 0:00:34.2]} 27. Qa4 {[%clk 0:01:21.5]} 27... Qc8 {[%clk
0:00:28.5]} 28. Rxb7 {[%clk 0:01:18.9]} 28... Rxe3 {[%clk 0:00:28.5]} 29. h3
{[%clk 0:00:57.5]} 29... Nc5 {[%clk 0:00:24.2]} 30. Qe8+ {[%clk 0:00:40.6]}
30... Qxe8 {[%clk 0:00:23.7]} 31. fxe8=Q+ {[%clk 0:00:41.5]} 31... Kxe8 {[%clk
0:00:24.3]} 32. Rb8+ {[%clk 0:00:39.8]} 32... Bd8 {[%clk 0:00:24.8]} 33. Rxa8
{[%clk 0:00:35.9]} 33... Rxc3 {[%clk 0:00:17.2]} 34. Nc6 {[%clk 0:00:35.7]}
34... Rd3 {[%clk 0:00:17.6]} 35. Be2 {[%clk 0:00:33.6]} 35... Rd2 {[%clk
0:00:17.6]} 36. Bxc4 {[%clk 0:00:33.3]} 36... Ne4 {[%clk 0:00:16.6]} 37. Bxa6
{[%clk 0:00:29.2]} 37... h5 {[%clk 0:00:14.1]} 38. Bb5 {[%clk 0:00:27.8]} 38...
h4 {[%clk 0:00:13.2]} 39. Nxd8+ {[%clk 0:00:20.5]} 39... Ke7 {[%clk 0:00:13.7]}
40. Nc6+ {[%clk 0:00:19.1]} 40... Kf6 {[%clk 0:00:14.4]} 41. Ra1 {[%clk
0:00:18.8]} 41... Ng3+ {[%clk 0:00:12.3]} 42. Kg1 {[%clk 0:00:08.6]} 42... Kf5
{[%clk 0:00:13]} 43. Ne5 {[%clk 0:00:07.7]} 43... Kxf4 {[%clk 0:00:12.4]} 44.
Nf3 {[%clk 0:00:08.2]} 44... Rb2 {[%clk 0:00:11.4]} 45. Bf1 {[%clk 0:00:07.3]}
45... g5 {[%clk 0:00:10.7]} 46. Ra4+ {[%clk 0:00:07.4]} 46... Kf5 {[%clk
0:00:11]} 47. Ra5+ {[%clk 0:00:07.5]} 47... Kf4 {[%clk 0:00:11.4]} 48. Rxg5
{[%clk 0:00:07.5]} 48... Nxf1 {[%clk 0:00:10.7]} 49. Kxf1 {[%clk 0:00:07.2]}
49... Rb1+ {[%clk 0:00:10.4]} 50. Kf2 {[%clk 0:00:07.4]} 50... Rb2+ {[%clk
0:00:11]} 51. Kf1 {[%clk 0:00:07.9]} 51... Rb1+ {[%clk 0:00:11.6]} 52. Ke2
{[%clk 0:00:08.5]} 52... Rb2+ {[%clk 0:00:11.8]} 53. Kd3 {[%clk 0:00:09]} 53...
Rf2 {[%clk 0:00:11.1]} 54. Rg4+ {[%clk 0:00:08.9]} 54... Kf5 {[%clk 0:00:11.1]}
55. Nxh4+ {[%clk 0:00:09.5]} 55... Kf6 {[%clk 0:00:11.1]} 56. Nf3 {[%clk
0:00:10]} 56... Kf5 {[%clk 0:00:11]} 57. Ke3 {[%clk 0:00:10.5]} 57... Rf1 {[%clk
0:00:11]} 58. Nd4+ {[%clk 0:00:10.7]} 58... Kf6 {[%clk 0:00:11.4]} 59. Rf4+
{[%clk 0:00:10.6]} 59... Rxf4 {[%clk 0:00:11.4]} 60. Kxf4 {[%clk 0:00:11.5]} 1-0

[Event "Early-Titled-Tuesday-Blitz-November-28-2023"]
[Site "Chess.com"]
[Date "2023.11.28"]
[Round "1"]
[White "Gabrielian_Artur"]
[Black "kuanysh1981"]
[Result "1/2-1/2"]
[WhiteElo "2757"]
[BlackElo "2447"]
[TimeControl "180+1"]
[EndTime "8:08:13 PST"]
[Termination "Game drawn by repetition"]

1. e4 {[%clk 0:03:00.9]} 1... e5 {[%clk 0:02:59.4]} 2. Nf3 {[%clk 0:03:00.4]}
2... Nc6 {[%clk 0:02:59.3]} 3. Nc3 {[%clk 0:02:59.5]} 3... Nf6 {[%clk
0:02:56.5]} 4. Bb5 {[%clk 0:02:59.5]} 4... d6 {[%clk 0:02:54.9]} 5. d4 {[%clk
0:02:58.5]} 5... exd4 {[%clk 0:02:55.8]} 6. Nxd4 {[%clk 0:02:58.5]} 6... Bd7
{[%clk 0:02:56]} 7. O-O {[%clk 0:02:57.2]} 7... Be7 {[%clk 0:02:56]} 8. Nxc6
{[%clk 0:02:57.4]} 8... bxc6 {[%clk 0:02:55]} 9. Bd3 {[%clk 0:02:57.6]} 9... O-O
{[%clk 0:02:54.7]} 10. f4 {[%clk 0:02:57.9]} 10... Rb8 {[%clk 0:02:49.3]} 11.
Kh1 {[%clk 0:02:57.2]} 11... Re8 {[%clk 0:02:44.8]} 12. Qf3 {[%clk 0:02:47.3]}
12... Bf8 {[%clk 0:02:42.4]} 13. b3 {[%clk 0:02:47]} 13... c5 {[%clk 0:02:20.8]}
14. Bb2 {[%clk 0:02:43]} 14... Bc6 {[%clk 0:02:20.9]} 15. Rae1 {[%clk
0:02:41.6]} 15... g6 {[%clk 0:02:20.2]} 16. Nd5 {[%clk 0:02:34.6]} 16... Bxd5
{[%clk 0:02:18.4]} 17. exd5 {[%clk 0:02:34.2]} 17... Bg7 {[%clk 0:02:17.2]} 18.
f5 {[%clk 0:02:33.3]} 18... Rxe1 {[%clk 0:02:15.8]} 19. Rxe1 {[%clk 0:02:33]}
19... Nd7 {[%clk 0:02:15.4]} 20. Bc1 {[%clk 0:02:08.4]} 20... Ne5 {[%clk
0:02:11.8]} 21. Qg3 {[%clk 0:02:08.2]} 21... Nxd3 {[%clk 0:02:10.7]} 22. cxd3
{[%clk 0:02:03.3]} 22... Qf6 {[%clk 0:02:09.8]} 23. fxg6 {[%clk 0:02:02.1]}
23... hxg6 {[%clk 0:02:10.7]} 24. h3 {[%clk 0:02:02.4]} 24... Qd4 {[%clk
0:02:01.6]} 25. Qf3 {[%clk 0:02:00]} 25... Kf8 {[%clk 0:01:48.8]} 26. Rf1 {[%clk
0:01:54.9]} 26... f6 {[%clk 0:01:43.3]} 27. Re1 {[%clk 0:01:14.9]} 27... Re8
{[%clk 0:01:39.4]} 28. Rxe8+ {[%clk 0:01:13.1]} 28... Kxe8 {[%clk 0:01:40.3]}
29. Bf4 {[%clk 0:01:10.9]} 29... Kf7 {[%clk 0:01:37.6]} 30. Kh2 {[%clk
0:01:09.9]} 30... f5 {[%clk 0:01:36.5]} 31. Bg3 {[%clk 0:01:07.1]} 31... Be5
{[%clk 0:01:33.8]} 32. Kh1 {[%clk 0:01:02.4]} 32... Bxg3 {[%clk 0:01:32.2]} 33.
Qxg3 {[%clk 0:01:02.7]} 33... Qxd5 {[%clk 0:01:32.2]} 34. Qe3 {[%clk 0:01:00.6]}
34... Qe5 {[%clk 0:01:29]} 35. Qh6 {[%clk 0:01:00.7]} 35... Qa1+ {[%clk
0:01:28.1]} 36. Kh2 {[%clk 0:01:00.6]} 36... Qg7 {[%clk 0:01:29]} 37. Qh4 {[%clk
0:00:57.8]} 37... Ke6 {[%clk 0:01:23.1]} 38. Qc4+ {[%clk 0:00:57.1]} 38... Kd7
{[%clk 0:01:20.8]} 39. Qa6 {[%clk 0:00:56.8]} 39... Qe5+ {[%clk 0:01:20.2]} 40.
Kh1 {[%clk 0:00:57.2]} 40... Qe1+ {[%clk 0:01:18]} 41. Kh2 {[%clk 0:00:57.5]}
41... Qe5+ {[%clk 0:01:12]} 42. Kh1 {[%clk 0:00:57.2]} 42... f4 {[%clk 0:01:10]}
43. Qxa7 {[%clk 0:00:53.6]} 43... Qe1+ {[%clk 0:01:07.4]} 44. Kh2 {[%clk
0:00:53.9]} 44... Qg3+ {[%clk 0:01:08]} 45. Kh1 {[%clk 0:00:54.2]} 45... f3
{[%clk 0:01:05.1]} 46. Qa4+ {[%clk 0:00:54.2]} 46... c6 {[%clk 0:00:56.4]} 47.
gxf3 {[%clk 0:00:40.2]} 47... Qxh3+ {[%clk 0:00:53.4]} 48. Kg1 {[%clk
0:00:40.5]} 48... Qg3+ {[%clk 0:00:53.7]} 49. Kf1 {[%clk 0:00:41]} 49... Qxf3+
{[%clk 0:00:54.6]} 50. Ke1 {[%clk 0:00:41.4]} 50... Qe3+ {[%clk 0:00:54.3]} 51.
Kd1 {[%clk 0:00:41.4]} 51... Qxd3+ {[%clk 0:00:55.2]} 52. Kc1 {[%clk 0:00:40.8]}
52... Qc3+ {[%clk 0:00:42.3]} 53. Kb1 {[%clk 0:00:40.2]} 53... Qd4 {[%clk
0:00:41.2]} 54. Qa7+ {[%clk 0:00:39.5]} 54... Ke6 {[%clk 0:00:41.4]} 55. Qa8
{[%clk 0:00:39.8]} 55... Qe4+ {[%clk 0:00:40.4]} 56. Kb2 {[%clk 0:00:39.6]}
56... Qd4+ {[%clk 0:00:35.7]} 57. Kb1 {[%clk 0:00:39.1]} 57... Qd1+ {[%clk
0:00:35.5]} 58. Kb2 {[%clk 0:00:39.1]} 58... Qd2+ {[%clk 0:00:36.4]} 59. Kb1
{[%clk 0:00:37.4]} 59... Qd1+ {[%clk 0:00:34.2]} 60. Kb2 {[%clk 0:00:37.5]}
60... Qd2+ {[%clk 0:00:35.1]} 61. Kb1 {[%clk 0:00:37.9]} 61... Kd5 {[%clk
0:00:33.7]} 62. Qg8+ {[%clk 0:00:36.6]} 62... Kd4 {[%clk 0:00:32]} 63. Qg7+
{[%clk 0:00:36.5]} 63... Kd5 {[%clk 0:00:30]} 64. Qf7+ {[%clk 0:00:35.3]} 64...
Ke5 {[%clk 0:00:27.7]} 65. Qxg6 {[%clk 0:00:28.5]} 65... Qd1+ {[%clk 0:00:25.4]}
66. Kb2 {[%clk 0:00:28.4]} 66... Qd2+ {[%clk 0:00:26.3]} 67. Kb1 {[%clk
0:00:26.2]} 67... Qd1+ {[%clk 0:00:26.4]} 68. Kb2 {[%clk 0:00:26.4]} 68... Qd2+
{[%clk 0:00:26.5]} 69. Kb1 {[%clk 0:00:26]} 1/2-1/2

[Event "Early-Titled-Tuesday-Blitz-November-28-2023"]
[Site "Chess.com"]
[Date "2023.11.28"]
[Round "1"]
[White "Aslanov_Umid"]
[Black "Jospem"]
[Result "0-1"]
[WhiteElo "2519"]
[BlackElo "3047"]
[TimeControl "180+1"]
[EndTime "8:08:14 PST"]
[Termination "Jospem won by resignation"]

1. e4 {[%clk 0:03:00.9]} 1... c5 {[%clk 0:03:00]} 2. Nf3 {[%clk 0:03:01.5]} 2...
d6 {[%clk 0:03:00.3]} 3. d4 {[%clk 0:03:02.1]} 3... cxd4 {[%clk 0:03:00.8]} 4.
Nxd4 {[%clk 0:03:03]} 4... a6 {[%clk 0:03:01.3]} 5. Nc3 {[%clk 0:02:59.5]} 5...
e6 {[%clk 0:03:01.5]} 6. Bc4 {[%clk 0:02:58.8]} 6... Nf6 {[%clk 0:03:01.3]} 7.
Bb3 {[%clk 0:02:59.5]} 7... b5 {[%clk 0:03:01.2]} 8. Bg5 {[%clk 0:03:00.2]} 8...
Be7 {[%clk 0:03:00.2]} 9. Qf3 {[%clk 0:03:00.5]} 9... Qb6 {[%clk 0:02:54.9]} 10.
O-O-O {[%clk 0:03:00.4]} 10... Nbd7 {[%clk 0:02:39.3]} 11. Rhe1 {[%clk
0:02:43.7]} 11... Ne5 {[%clk 0:01:38.4]} 12. Qg3 {[%clk 0:02:30.2]} 12... O-O
{[%clk 0:01:21.6]} 13. f4 {[%clk 0:02:27.7]} 13... Nc4 {[%clk 0:01:21.5]} 14. f5
{[%clk 0:02:06.9]} 14... Kh8 {[%clk 0:01:15.6]} 15. Qh3 {[%clk 0:01:20.2]} 15...
Qc5 {[%clk 0:00:58.3]} 16. Kb1 {[%clk 0:00:55.8]} 16... Rb8 {[%clk 0:00:52.9]}
17. Qg3 {[%clk 0:00:43.8]} 17... a5 {[%clk 0:00:46.4]} 18. Bxc4 {[%clk
0:00:30.2]} 18... bxc4 {[%clk 0:00:45]} 19. e5 {[%clk 0:00:30.1]} 19... dxe5
{[%clk 0:00:38.4]} 20. Qxe5 {[%clk 0:00:28]} 20... Qb4 {[%clk 0:00:27.3]} 21.
Ndb5 {[%clk 0:00:22]} 21... Ba6 {[%clk 0:00:27.5]} 22. a3 {[%clk 0:00:20.6]}
22... Rxb5 {[%clk 0:00:27.9]} 23. Nxb5 {[%clk 0:00:19]} 23... Qxb5 {[%clk
0:00:27.4]} 24. fxe6 {[%clk 0:00:18.2]} 24... Qxe5 {[%clk 0:00:15.4]} 25. Rxe5
{[%clk 0:00:19.1]} 25... Kg8 {[%clk 0:00:16.3]} 26. exf7+ {[%clk 0:00:16.8]}
26... Kxf7 {[%clk 0:00:17.2]} 27. Rd7 {[%clk 0:00:15.6]} 27... Nxd7 {[%clk
0:00:11.9]} 28. Rxe7+ {[%clk 0:00:11.6]} 28... Kg6 {[%clk 0:00:12.3]} 29. Bd2
{[%clk 0:00:11.5]} 29... Nf6 {[%clk 0:00:09.7]} 30. Bxa5 {[%clk 0:00:10.7]}
30... Rf7 {[%clk 0:00:07.4]} 31. Re6 {[%clk 0:00:10.3]} 31... Bb7 {[%clk
0:00:07.3]} 32. Bc3 {[%clk 0:00:09.5]} 32... Bxg2 {[%clk 0:00:06.6]} 33. a4
{[%clk 0:00:10.2]} 33... Kf5 {[%clk 0:00:06.4]} 34. Re5+ {[%clk 0:00:10]} 34...
Kg4 {[%clk 0:00:06.1]} 35. a5 {[%clk 0:00:10.2]} 35... Kh3 {[%clk 0:00:05.6]}
36. a6 {[%clk 0:00:06.1]} 36... Kxh2 {[%clk 0:00:05.7]} 37. Rb5 {[%clk
0:00:05.2]} 37... h5 {[%clk 0:00:05.7]} 38. Be5+ {[%clk 0:00:02.9]} 38... Kh3
{[%clk 0:00:05.7]} 39. Bxf6 {[%clk 0:00:03.7]} 39... gxf6 {[%clk 0:00:05.8]} 40.
Rxh5+ {[%clk 0:00:04.6]} 40... Kg4 {[%clk 0:00:06.4]} 41. Rc5 {[%clk 0:00:05.2]}
41... f5 {[%clk 0:00:06.4]} 42. Rxc4+ {[%clk 0:00:05.2]} 42... Kg3 {[%clk
0:00:07.1]} 43. Rc8 {[%clk 0:00:03.4]} 43... f4 {[%clk 0:00:06.5]} 44. Rg8+
{[%clk 0:00:03.8]} 44... Kf2 {[%clk 0:00:07.1]} 45. b4 {[%clk 0:00:04]} 45...
Bc6 {[%clk 0:00:06.9]} 46. c4 {[%clk 0:00:03.9]} 46... f3 {[%clk 0:00:06]} 47.
b5 {[%clk 0:00:04.6]} 47... Be4+ {[%clk 0:00:06.5]} 48. Kc1 {[%clk 0:00:05.1]}
48... Ke3 {[%clk 0:00:06.7]} 49. Rg3 {[%clk 0:00:03.4]} 49... Rc7 {[%clk
0:00:06.4]} 50. b6 {[%clk 0:00:02.4]} 50... Rxc4+ {[%clk 0:00:06.9]} 51. Kb2
{[%clk 0:00:02.6]} 51... Rb4+ {[%clk 0:00:06.9]} 52. Kc3 {[%clk 0:00:03.4]}
52... Rxb6 {[%clk 0:00:07.7]} 53. a7 {[%clk 0:00:04.1]} 53... Ra6 {[%clk
0:00:08.1]} 54. Rg7 {[%clk 0:00:03.2]} 54... f2 {[%clk 0:00:08]} 55. Rf7 {[%clk
0:00:04]} 55... Rxa7 {[%clk 0:00:05.2]} 56. Rxa7 {[%clk 0:00:02.6]} 56... f1=Q
{[%clk 0:00:04.9]} 0-1